Cogmind - Beta 15 @@@ ROGUE MODE // 2025.09.02 @ 01:28:30 Player: Mogwok Wargfriend Result: Destroyed by G-34 Mercenary with Small Laser Performance ------------- Evolutions (0) 0 Regions Visited (2) 400 Robots Destroyed (38) 190 Value Destroyed (649) 649 Prototype IDs (0) 0 Alien Tech Used (0) 0 Bonus (75) 75 TOTAL SCORE: 1314 Bonus ------- Follower Combat Kills 75 Cogmind --------- Core Integrity 0/250 Matter 286/300 Energy 250/250 System Corruption 2% Temperature Cool (6) Movement Rolling (125) Ox3 Location -10/Mines Parts ------- > --- POWER (1) -------- Ion Engine > --- PROPULSION (2) --- Light Treads Wheel > --- UTILITY (2) ------ Large Storage Unit Structural Scanner > --- WEAPON (2) ------- Assault Rifle Light Cannon > --- INVENTORY (15) --- Ion Engine Wheel Compact Wheel Heat Sink Improved Heat Sink Medium Battery (150) Medium Matter Pod (100) Sensor Array Signal Interpreter Hacking Suite Small Laser Light Cannon Grenade Launcher Datajack Mining Laser Peak State ------------ > --- POWER ------------ Light Ion Engine > --- PROPULSION ------- Light Treads Compact Wheel > --- UTILITY ---------- Large Storage Unit Seismic Detector > --- WEAPON ----------- Medium Laser Light Assault Rifle > --- INVENTORY -------- Light Treads Wheel Wheel Heat Sink Medium Battery Medium Matter Pod Visual Processing Unit Small Laser Assault Rifle Mining Laser [Rating: 8] Favorites ----------- Power Light Ion Engine Engine Light Ion Engine Propulsion Light Treads Treads Light Treads Wheel Wheel Utility Large Storage Unit Device Structural Scanner Storage Large Storage Unit Weapon Assault Rifle Energy Gun Medium Laser Ballistic Gun Assault Rifle Ballistic Cannon Light Cannon Special Weapon Mining Laser Build | -11 -10 -10 ------- Run | Yrd Mat Min Slots Evolved . | . . . Power . | . . . Propulsion . | . . . Utility . | . . . Weapon . | . . . Parts Attached 21 | 7 13 1 Power 5 | 1 4 . Engine 5 | 1 4 . Core . | . . . Reactor . | . . . Propulsion 4 | 2 2 . Treads 2 | 1 1 . Leg . | . . . Wheel 2 | 1 1 . Hover . | . . . Flight . | . . . Utility 5 | 2 3 . Device 3 | 1 2 . Storage 2 | 1 1 . Processor . | . . . Hackware . | . . . Protection . | . . . Artifact . | . . . Weapon 7 | 2 4 1 Energy Gun 2 | 1 1 . Energy Cannon . | . . . Ballistic Gun 3 | 1 2 . Ballistic Cannon 1 | . 1 . Launcher . | . . . Special Weapon 1 | . . 1 Impact Weapon . | . . . Slashing Weapon . | . . . Piercing Weapon . | . . . Special Melee Weapon . | . . . Unidentified Prototypes . | . . . Parts Lost 7 | . 7 . Power 2 | . 2 . Propulsion 2 | . 2 . Utility . | . . . Weapon 3 | . 3 . Highest Loss Streak 3 | . 3 . To Critical Strikes . | . . . Average Backups 12 | 4 12 15 Power . | . . 1 Propulsion 2 | 2 2 2 Utility 5 | . 5 7 Weapon 3 | . 2 4 Tool/Special . | . . . Unused Backups 19 | 2 4 13 Power 1 | . . 1 Propulsion 5 | 2 1 2 Utility 8 | . 2 6 Weapon 4 | . 1 3 Tool/Special 1 | . . 1 Average Slot Usage (%) 99 | . 99 100 Engine 13 | . 13 14 Treads 14 | . 14 14 Wheel 14 | . 14 14 Device 14 | . 14 14 Storage 14 | . 14 14 Energy Gun 4 | . 6 . Ballistic Gun 14 | . 16 9 Ballistic Cannon 7 | . 4 14 Special Weapon 1 | . . 4 Peak Build Rating 8 | 7 8 8 Average Rating 7 | 6 7 8 On Entrance 5 | . 7 8 Naked Turns . | . . . Heaviest Build 31 | 13 31 31 Greatest Support 16 | 16 16 10 Greatest Overweight (x) 3 | . 3 3 Average Overweight (x) 1 | . 1 2 Largest Inventory Capacity 15 | 8 15 15 Average Capacity 13 | 7 13 15 Most Carried 15 | 8 15 15 Average Carried 12 | 4 12 15 Final Capacity 15 | 8 15 15 Final Carried 15 | 7 15 15 Class Distribution -------------------- 100% | Mutant Dominant Class ---------------- Mutant | -10/Materials Mutant | -10/Mines Resources | -11 -10 -10 ----------- Run | Yrd Mat Min Matter Collected 982 | 413 344 225 Remotely . | . . . Salvage Created 1140 | 213 707 220 Parts 79 | 12 45 22 Haulers Intercepted 2 | . 2 . Recyclers Shooed 2 | 1 1 . Parts Field Recycled . | . . . Retrieved Matter . | . . . Parts Self-Destructed . | . . . Prevented . | . . . Kills | -11 -10 -10 ------- Run | Yrd Mat Min Combat Hostiles Destroyed 20 | . 13 7 Guns 16 | . 13 3 Cannons 4 | . . 4 Classes Destroyed 9 | 3 5 1 Worker 4 | 2 2 . Tunneler 6 | 4 . 2 Hauler 2 | . 2 . Recycler 3 | 1 1 1 Operator 1 | . 1 . Watcher 3 | . 3 . Swarmer 7 | . 3 4 Grunt 12 | . 10 2 Assembled 1 | . . 1 Best Kill Streak 7 | 4 7 5 Combat Bots Only 6 | . 6 3 Max Kills in Single Turn 2 | 1 1 2 Gunslinging . | . . . Exploded . | . . . Melee . | . . . Uniques/NPCs Destroyed . | . . . Combat | -11 -10 -10 -------- Run | Yrd Mat Min Hostile Shots Fired 107 | . 88 19 Missed 24 | . 18 6 Hits 83 | . 70 13 Melee 1 | . . 1 Projectile 82 | . 70 12 Damage Taken 1056 | . 871 185 Core 255 | . 199 56 Absorbed by Shields . | . . . Core Remaining (%) 100 | 100 . . Volleys Fired 159 | 22 83 54 Largest 2 | 2 2 2 Hottest 130 | 70 70 130 Shots Fired 285 | 44 165 76 Gun 220 | 44 155 21 Cannon 32 | . 10 22 Launcher . | . . . Special 33 | . . 33 Kinetic 166 | 22 101 43 Thermal 119 | 22 64 33 Explosive . | . . . Electromagnetic . | . . . Robot Hit Streak 10 | 8 10 9 Robot Miss Streak 5 | 3 5 3 Penetration Max . | . . . Secondary Targets . | . . . Shots Hit Robots 155 | 27 105 23 Core Hits 59 | 8 38 13 Critical Kills . | . . . Critical Parts Destroyed . | . . . Critical Strikes 4 | 1 1 2 Burn 1 | 1 . . Blast 3 | . 1 2 Melee Attacks . | . . . Impact . | . . . Slashing . | . . . Piercing . | . . . Sneak Attacks . | . . . Combat Hostiles . | . . . Follow-up Attacks . | . . . Damage Inflicted 1973 | 341 1250 382 Guns 1695 | 341 1171 183 Cannons 273 | . 74 199 Explosions . | . . . Melee . | . . . Ramming 5 | . 5 . Kinetic 1150 | 130 638 382 Thermal 818 | 211 607 . Explosive . | . . . Electromagnetic . | . . . Impact . | . . . Slashing . | . . . Piercing . | . . . Highest Corruption 2 | . 2 2 Average Corruption 2 | . 2 2 Corruption Purged . | . . . Corruption Blocked . | . . . Effects 15 | . 8 7 Message Errors 3 | . . 3 Matter Fused 4 | . 1 3 Energy Discharges 4 | . 3 1 Data Loss (major) 1 | . 1 . Misfires 1 | . 1 . Alerts 1 | . 1 . Weapon Failures 1 | . 1 . Overload Shots . | . . . Overflow Damage . | . . . Projectiles . | . . . Explosions . | . . . Melee . | . . . Knockbacks 1 | . 1 . Impact . | . . . Kinetic 1 | . 1 . Secondary . | . . . Self-Inflicted Damage 2 | . 2 . Shots . | . . . Rammed 1 | . 1 . Targets Rammed 1 | . 1 . Kicked . | . . . Crushed . | . . . Highest Temperature 208 | 65 208 140 Average Temperature 46 | 26 55 43 Received Heat Transfer 483 | . 453 30 Siege Activations . | . . . Martial Activations . | . . . Shielding Activations . | . . . Robots Disrupted . | . . . Combat Hostiles . | . . . Robots Corrupted . | . . . Combat Hostiles . | . . . Parts Fried . | . . . Impact Corruptions . | . . . Robots Melted . | . . . Combat Hostiles . | . . . Parts Melted 3 | 2 1 . Heat Transferred 2385 | 703 1682 . Parts Sabotaged . | . . . Parts Stolen . | . . . Parts Stripped . | . . . Power Chain Reactions . | . . . Alert | -11 -10 -10 ------- Run | Yrd Mat Min Maximum Alert Level . | . . . Low Security (%) 100 | 100 100 100 Level 1 . | . . . Level 2 . | . . . Level 3 . | . . . Level 4 . | . . . Level 5 . | . . . High Security . | . . . Max Security . | . . . Peak Influence 170 | 10 170 74 Initial . | . . . Average 36 | 1 49 17 Influence Increases 732 | 35 461 236 Destroy 0b10 Robot/C 440 | . 260 180 Destroy 0b10 Robot/NC 95 | 35 45 15 Destroy Leader 100 | . 70 30 Allied During Kill 7 | . . 7 Successful Hack 26 | . 26 . Destroy Structure 4 | . . 4 Lose Combat Pursuer 60 | . 60 . Influence Decreases 712 | 35 461 216 Time Decay 622 | 35 391 196 Lost Part 70 | . 70 . Lost Ally 20 | . . 20 Squads Dispatched 3 | . 3 . Investigation 1 | . 1 . Extermination . | . . . Reinforcement 2 | . 2 . Assault . | . . . Garrison . | . . . Intercept . | . . . Searches Triggered . | . . . Construction Impeded . | . . . Haulers Reinforced . | . . . Active Scanning Responses . | . . . Cargo Convoy Interrupts . | . . . Stealth | -11 -10 -10 --------- Run | Yrd Mat Min Distress Signals . | . . . Communications Jammed . | . . . Distress Signals . | . . . Times Spotted 33 | . 24 9 Peak Tracking Total 5 | . 5 3 Tactical Retreats 3 | . 2 1 Traps | -11 -10 -10 ------- Run | Yrd Mat Min Traps Triggered 4 | . 4 . Indirectly . | . . . Trap Hack Attempts . | . . . Triggered . | . . . Disarmed . | . . . Reprogrammed . | . . . Reused . | . . . Traps Extracted . | . . . Installed . | . . . Triggered . | . . . Machines | -11 -10 -10 ---------- Run | Yrd Mat Min Machines Disabled . | . . . Max in Single Turn . | . . . Machines Repaired . | . . . Machines Dismantled . | . . . Machines Sabotaged . | . . . Overloaded Fab Kills . | . . . Hacking | -11 -10 -10 --------- Run | Yrd Mat Min Machines Accessed 9 | . 9 . Terminals 6 | . 6 . Fabricators . | . . . Repair Stations 1 | . 1 . Recycling Units 2 | . 2 . Scanalyzers . | . . . Garrison Access . | . . . Total Hacks 25 | . 25 . Successful 12 | . 12 . Failed 13 | . 13 . Catastrophic 2 | . 2 . Database Lockouts . | . . . Manual 15 | . 15 . Terminals 15 | . 15 . Fabricators . | . . . Repair Stations 3 | . 3 . Recycling Units 7 | . 7 . Scanalyzers . | . . . Garrison Access . | . . . Terminal Hacks 4 | . 4 . Robot Analysis 3 | . 3 . Locate Traps 1 | . 1 . Fabricator Hacks . | . . . Repair Station Hacks 1 | . 1 . Scan Component 1 | . 1 . Recycling Unit Hacks 3 | . 3 . Report Inventory 2 | . 2 . Retrieve Components 1 | . 1 . Scanalyzer . | . . . Garrison Access Hacks . | . . . Unauthorized Hacks 4 | . 4 . Terminals 2 | . 2 . Botnet 2 | . 2 . Fabricators . | . . . Repair Stations . | . . . Recycling Units 2 | . 2 . Reject 2 | . 2 . Scanalyzers . | . . . Garrison Access . | . . . Data Cores Recovered 1 | . 1 . Used . | . . . Hacking Detections 8 | . 8 . Full Trace Events . | . . . Feedback Events . | . . . Feedback Blocked . | . . . Robot Schematics Acquired . | . . . Robots Built . | . . . Authchips . | . . . Time . | . . . Total Robot Build Rating . | . . . Part Schematics Acquired . | . . . Parts Built . | . . . Authchips . | . . . Time . | . . . Total Part Build Rating . | . . . Parts Repaired . | . . . Time . | . . . Parts Recycled . | . . . Recycled Matter . | . . . Retrieved Matter . | . . . Retrieved Components 10 | . 10 . Parts Scanalyzed . | . . . Part Schematics Acquired . | . . . Parts Damaged . | . . . Bothacking | -11 -10 -10 ------------ Run | Yrd Mat Min Used RIF Installer . | . . . Robots Hacked . | . . . Non-combat . | . . . Combat . | . . . Robot Hacks Applied . | . . . Relay Couplers Released . | . . . Fabnet Peak Effective % . | . . . Robots Rewired . | . . . Allies Hacked . | . . . Hacks Repelled . | . . . Allies | -11 -10 -10 -------- Run | Yrd Mat Min Total Allies 1 | . . 1 Largest Group 1 | . . 1 Highest-Rated Group 31 | . . 31 Highest-Rated Ally 31 | . . 31 Total Orders . | . . . Ally Attacks 12 | . . 12 Total Damage 253 | . . 253 Kills 4 | . . 4 Allies Corrupted . | . . . Allies Melted . | . . . Intel | -11 -10 -10 ------- Run | Yrd Mat Min Active Infowar (turns) 2232 | 106 1448 678 Sensors 143 | . 143 . Structural 1608 | . 930 678 Seismic 481 | 106 375 . Robot Analysis Total 3 | . 3 . Derelict Logs Recovered 1 | . . 1 Drone Launches . | . . . Drone Recoveries . | . . . Exploration | -11 -10 -10 ------------- Run | Yrd Mat Min Turns Passed 2302 | 170 1454 678 Spaces Moved 1475 | 85 1011 379 Core 3 | 3 . . Treads . | . . . Legs . | . . . Wheels 1472 | 82 1011 379 Hover . | . . . Flight . | . . . Fastest Speed 50 | 50 100 110 Average Speed 112 | 98 110 122 Slowest Speed 125 | 100 125 125 Overloaded Moves . | . . . Propulsion Burnouts . | . . . Robots Hopped . | . . . Potential Cave-ins . | . . . Cave-ins Triggered . | . . . Exploration Rate (%) 55 | 3 99 64 Regions Visited 2 Branch Regions 1 Pre-discovered Areas 1 | . . 1 Known Exits Taken . | . . . Unknown Exits Taken 2 | 1 1 . Scrap Searched 1 | . . 1 Spaces Dug 2 | . . 2 Terrain Destroyed 9 | . . 9 Melee . | . . . Projectile 9 | . . 9 AOE . | . . . Terrain Rammed . | . . . Walls Destroyed . | . . . Machines Disabled . | . . . Actions | -11 -10 -10 --------- Run | Yrd Mat Min Total 1768 | 124 1197 447 Wait 65 | . 57 8 Move 1473 | 84 1010 379 Hop . | . . . Pick Up 28 | 9 19 . Fast Attach 10 | 7 3 . Attach 9 | . 9 . Detach 3 | . 3 . Swap 9 | . 3 6 Drop 11 | 2 9 . Fire 159 | 22 83 54 Melee . | . . . Ram 1 | . 1 . Kick . | . . . Crush . | . . . Escape Stasis . | . . . Rewire . | . . . Trap . | . . . Miscellaneous . | . . . Route ------- -11/Scrapyard -10/Materials (discovered 6 exits: [*Mat x3] / [*Min x2] / [*Sub]) -10/Mines (discovered 2 exits: [*Mat] / [*Sub]) History --------- Turn | Location | Event 15 | -11/Scrapyard | Discovered new exit (range 16) 171 | -11/Scrapyard | Entered Materials 303 | -10/Materials | Build established: Mutant 363 | -10/Materials | Discovered new exit (range 6) 471 | -10/Materials | Discovered new exit (range 16) 751 | -10/Materials | Discovered new exit (range 13) 790 | -10/Materials | Core integrity fell below 50% 845 | -10/Materials | Lost 3 parts (1p1n1w) 998 | -10/Materials | Discovered new exit (range 15) 1236 | -10/Materials | Discovered new exit (range 10) 1484 | -10/Materials | Discovered new exit (range 13) 1625 | -10/Materials | Entered Mines 1782 | -10/Mines | Escorted by a lone wolf Derelict 1802 | -10/Mines | Learned location of Storage (-8) 1849 | -10/Mines | Discovered new exit (range 10) 1858 | -10/Mines | Core integrity fell below 20% 1938 | -10/Mines | Learned 4 Materials zone layouts 1948 | -10/Mines | Excavation squad dispatched 1948 | -10/Mines | A large section of the Mines collapsed 2119 | -10/Mines | Discovered new exit (range 5) 2303 | -10/Mines | Destroyed by G-34 Mercenary with Small Laser Last Messages --------------- 02195_ U-05 Engineer lays Concrete. 02198_ Acquired 27 matter. 02199_ U-05 Engineer lays Concrete. 02212_ G-34 Mercenary destroyed. 02213_ U-05 Engineer lays Concrete. 02215_ 2A-0JV(g): "Mission, incomplete...*fzzt*" 02215_ 2A-0JV(g) destroyed. 02216_ U-05 Engineer lays Concrete. 02222_ G-47 Trooper destroyed. 02223_ U-05 Engineer lays Concrete. 02235_ G-34 Mercenary Ion Engine blasted off. 02236_ U-05 Engineer lays Concrete. 02238_ G-34 Mercenary destroyed. 02238_ U-05 Engineer lays Concrete. 02240_ U-05 Engineer builds a Door. 02244_ Acquired 53 matter. 02248_ Acquired 35 matter. 02249_ Acquired 9 matter. 02274_ T-07 Excavator is excavating. 02300_ K-01 Serf collects debris. Map ----- +----------------------------------------------------+ | | | | | ????????????????####?????????????????????????????? | | ???????????????#######???????????????????????????? | | ???????????????## ####???????????????????????????? | | ?????????????#### # ##???????????????????????????? | | ????????????##### ###???????????????????????????? | | ????????????### # # ##?#####?????????????????????? | | ????????????## <###?#####?????????????????????? | | ????????????## ##### ##?????????????????????? | | ????????????## ##### ########???????????????? | | ????????????## #### ########???????????????? | | ????????????###/ #### ##### #???????????????? | | ????????????### ####?## ##???????????????? | | ?????????????## ######?### ##???????????????? | | ?????????????## #####???### ##???????????????? | | ?????????????## ############ ##???????????????? | | ?????????????### ####?######## ##???????????????? | | ?????????????#### ####?## ##???????????????? | | ??????????#######=####?## ########???????????????? | | ??????????####### * ##### ########???????????????? | | ??????????## !|! ##### ##???????????????#####?? | | ? ??????## #### ##??????????????#######? | | ? ##??????### *### ######## ###?##### ###? | | ? ##??????##### t [!###k######## ######## ##? | | ? ##???????##### ; =g=%=@ ##### ##? | | ? ##?????????#### %;=[ =% ; #### ##? | | ? ????????????### = %############ ###% ##? | | ? ?????????######!%= ############ ###%[== ###? | | # ?????????###### * ##?????????????###% ###?? | | # ?????????## % ##?????????????#### ####?? | | #????????## #### ##??????????????### ####### | | ##????????## ##### ###???????????????## ####### | | ############ ##########???????????????## | | ###############?######???????????????### ####### | | ##??????????????????????### ####### | | ###############??????????????????????## #### | | ###############??????????????????????## ### | | #########????????????????????????????### ## | | ##########???????????????????????????### | | #### #######???????????????????????## | | ## ###########??????????????????## | | ###########?????????????### | | """ ######????????????#### | | """ ##?############## | | """ ## ################ ## | | ######## ## ##### ### | | # ######### ## ### ########### ### | | ## ###????### = %#### ### ############ ## | | ########?????###=*##### ##??????### ## | +----------------------------------------------------+ Best States ------------- Heat Dissipation 25 Energy Generation 10 Energy Capacity 250 Matter Stores 300 Matter Capacity 300 Sight Range 16 Robot Scan Range 14 Terrain Scan Density 10 Evasion (%) 40 Item Schematics ----------------- None Robot Schematics ------------------ None Fabricated ------------ Nothing Repaired ---------- Nothing Alien Tech Used ----------------- None Achievements -------------- None Challenges ------------ None Game ------ Seed HeartFocalPendant Manual? 0 Play Time 00:18:47 Cumulative 368.2 hours Start 2025.09.01 @ 22:41:03 End 2025.09.02 @ 01:28:30 Sessions 3 Manual Loads 0 Difficulty Rogue Special Mode None Game No. 306 Rogue 306 Adventurer 0 Explorer 0 Win Type - Total 2 Types 2/0/0/0/0/0/0/0/0/0 Lore% 80 Gallery% 68 Achievement% 55 Wizard Run 0 Options --------- Layout 2 ASCII 1 Keyboard 1 Movement Numpad Keybinds 0 Fullscreen 2 Font 32/TamsynBold Map View 50x44 Zoom Use 0% Tactical HUD 1 Map Filters NONE Filters NONE Steam 1 RUN: 7e6244f0-d5e6-4e3d-9a98-2864c40155b2